bitfinex/quotes_BTCUSD_20250703
["timestamp","ask_amount","ask_price","bid_price","bid_amount"]
[1751560635714,1e-08,109400.0,109390.0,1.63675735]
[1751560635913,1e-08,109400.0,109390.0,1.71276506]
[1751560636255,1e-08,109400.0,109390.0,2.05606506]
[1751560636459,0.0004,109410.0,109400.0,1.35115711]
[1751560636460,1e-08,109410.0,109400.0,1.35115711]
[1751560636662,4.722e-05,109410.0,109400.0,1.44259404]
[1751560637806,4.722e-05,109410.0,109400.0,1.47032659]
[1751560638420,4.722e-05,109410.0,109400.0,1.5433343]
[1751560639309,4.722e-05,109410.0,109400.0,1.47032659]
[1751560639719,1e-08,109410.0,109400.0,1.47032659]
[1751560639925,1e-08,109410.0,109400.0,1.47232659]
[1751560640250,1e-08,109410.0,109400.0,1.47898959]
[1751560642515,1e-08,109410.0,109400.0,1.5519973]
[1751560644308,1e-08,109410.0,109400.0,1.7378773]
[1751560644964,1e-08,109410.0,109400.0,1.5519973]
[1751560645196,1e-08,109410.0,109400.0,1.15861614]
[1751560645416,1e-08,109410.0,109400.0,1.38993614]
[1751560646053,1e-08,109410.0,109400.0,1.15861614]
[1751560646284,1e-08,109410.0,109400.0,1.18559614]
[1751560646494,1e-08,109410.0,109400.0,1.00374359]
[1751560648649,1e-08,109410.0,109400.0,1.02184359]
[1751560651899,1e-08,109410.0,109400.0,1.02204359]
[1751560652111,0.00040001,109410.0,109400.0,1.02204359]
[1751560653022,0.02813927,109410.0,109400.0,0.35601275]
[1751560653252,0.06441838,109410.0,109400.0,0.31601392]
[1751560653472,0.08269798,109410.0,109400.0,0.51111418]
[1751560653692,0.25635736,109410.0,109400.0,0.501974]
[1751560653892,0.24721793,109410.0,109400.0,0.4928339]
[1751560654062,0.59478846,109410.0,109400.0,0.10164736]
[1751560654262,0.59478846,109410.0,109400.0,0.18616]
[1751560654444,0.21979865,109410.0,109400.0,0.38825679]
[1751560654645,0.21979865,109410.0,109400.0,0.37811611]
[1751560655048,0.21979865,109410.0,109400.0,0.4055374]
[1751560655250,0.03800001,109410.0,109400.0,0.87196414]
[1751560655452,0.02853919,109410.0,109400.0,0.87196414]
[1751560655675,0.01940001,109410.0,109400.0,0.87196414]
[1751560655874,0.00140001,109410.0,109400.0,0.87196414]
[1751560657153,0.00140001,109410.0,109400.0,0.88650499]
[1751560657952,0.00140001,109410.0,109400.0,0.92210499]
[1751560660911,0.00140001,109410.0,109400.0,0.90360499]
[1751560663333,0.02881812,109410.0,109400.0,0.87196414]
[1751560663540,0.05537853,109410.0,109400.0,0.87196414]
[1751560663743,0.03710001,109410.0,109400.0,0.87196414]
[1751560663872,0.04623927,109410.0,109400.0,0.87196414]
[1751560664486,0.03710001,109410.0,109400.0,0.87196414]
[1751560664888,0.01870001,109410.0,109400.0,0.87196414]
[1751560666621,0.01870001,109410.0,109400.0,0.82196414]
[1751560668531,0.01870001,109410.0,109400.0,0.82216414]
[1751560670644,0.00140001,109410.0,109400.0,0.82216414]
[1751560671285,0.00140001,109410.0,109400.0,0.85616414]
[1751560672013,0.00140001,109410.0,109400.0,0.83926414]
[1751560672555,0.00140001,109410.0,109400.0,0.82216414]
[1751560672756,0.00140001,109410.0,109400.0,0.44717433]
[1751560672968,0.00140001,109410.0,109400.0,0.82216414]
[1751560673174,0.00140001,109410.0,109400.0,0.8767805]
[1751560673944,0.00140001,109410.0,109400.0,0.9118805]
[1751560674351,0.00140001,109410.0,109400.0,0.8939805]
[1751560674501,0.00140001,109410.0,109400.0,0.8767805]
[1751560676066,0.00140001,109410.0,109400.0,0.9118805]
[1751560676696,0.00140001,109410.0,109400.0,0.8939805]
[1751560676908,0.00140001,109410.0,109400.0,0.89132135]
[1751560677084,0.00140001,109410.0,109400.0,1.34721116]
[1751560677420,0.00140001,109410.0,109400.0,1.6600648]
[1751560677570,0.00140001,109410.0,109400.0,1.73307251]
[1751560677790,0.00140001,109410.0,109400.0,1.75992507]
[1751560677980,0.00040001,109410.0,109400.0,1.68691736]
[1751560678159,0.00040001,109410.0,109400.0,1.76087399]
[1751560678359,0.00040001,109410.0,109400.0,1.68791736]
[1751560678596,0.00040001,109410.0,109400.0,1.68691736]
[1751560678964,0.00040001,109410.0,109400.0,1.68891736]
[1751560679179,0.00040001,109410.0,109400.0,1.7618567]
[1751560679844,0.00040001,109410.0,109400.0,1.7648567]
[1751560684473,1e-08,109410.0,109400.0,1.7648567]
[1751560686090,1e-08,109410.0,109400.0,1.69191736]
[1751560686757,0.0004,109420.0,109410.0,0.60085826]
[1751560686758,1e-08,109420.0,109410.0,0.60085826]
[1751560686962,1e-08,109420.0,109410.0,1.62787481]
[1751560687159,1e-08,109420.0,109410.0,1.70074318]
[1751560687723,1e-08,109420.0,109410.0,1.70440518]
[1751560688136,1e-08,109420.0,109410.0,1.70740518]
[1751560689222,1e-08,109420.0,109410.0,1.75292518]
[1751560691459,1e-08,109420.0,109410.0,1.00294556]
[1751560691679,1e-08,109420.0,109410.0,1.75292518]
[1751560692244,1e-08,109420.0,109410.0,1.75392518]
[1751560693363,1e-08,109420.0,109410.0,1.52280518]
[1751560693599,1e-08,109420.0,109410.0,2.1287457]
[1751560693812,1e-08,109420.0,109410.0,1.80375589]
[1751560694045,0.0004,109430.0,109410.0,2.28918719]
[1751560694046,1e-08,109430.0,109410.0,2.28918719]
[1751560694271,1e-08,109430.0,109420.0,1.41234921]
[1751560694487,1e-08,109430.0,109420.0,1.41006444]
[1751560694693,1e-08,109430.0,109420.0,1.15165562]
[1751560694900,1e-08,109430.0,109420.0,1.03048491]
[1751560695453,1e-08,109430.0,109420.0,1.03348491]
[1751560696692,4.721e-05,109430.0,109420.0,1.03548491]
[1751560697110,4.721e-05,109430.0,109420.0,1.03552491]
[1751560697315,4.721e-05,109430.0,109420.0,0.80440491]
[1751560697526,4.721e-05,109430.0,109420.0,1.03552491]
[1751560698557,4.721e-05,109430.0,109420.0,1.05432491]
[1751560700452,4.721e-05,109430.0,109420.0,0.82320491]
[1751560700652,4.721e-05,109430.0,109420.0,1.05424491]
[1751560702071,4.721e-05,109430.0,109420.0,0.82340491]
[1751560702306,4.721e-05,109430.0,109420.0,1.05440491]
[1751560702737,4.721e-05,109430.0,109420.0,1.07272491]
[1751560703616,4.721e-05,109430.0,109420.0,1.36602491]
[1751560706211,1e-08,109440.0,109430.0,0.55017899]
[1751560706423,1e-08,109440.0,109430.0,1.7016052]
[1751560707329,1e-08,109440.0,109430.0,1.7290662]
[1751560707553,1e-08,109440.0,109430.0,1.7300662]
[1751560709507,1e-08,109450.0,109440.0,0.2101598]
[1751560709744,1e-08,109450.0,109440.0,1.70084601]
[1751560711752,1e-08,109450.0,109440.0,1.70184601]
[1751560712407,0.00100001,109450.0,109440.0,1.70184601]
[1751560712622,1e-08,109450.0,109440.0,1.70184601]
[1751560712841,1e-08,109450.0,109440.0,1.71088062]
[1751560716884,1e-08,109450.0,109440.0,1.73833862]
[1751560717129,1e-08,109460.0,109450.0,0.56468144]
[1751560717364,1e-08,109460.0,109450.0,1.74662139]
[1751560718180,1e-08,109460.0,109450.0,1.37163158]
[1751560719276,0.0004,109470.0,109460.0,0.92511121]
[1751560719473,0.00087211,109470.0,109460.0,1.25644831]
[1751560719958,0.00087211,109470.0,109460.0,1.28390331]
[1751560720572,0.03617211,109470.0,109460.0,1.32938331]
[1751560721808,0.01887211,109470.0,109460.0,1.33038331]
[1751560721950,0.00087211,109470.0,109460.0,1.33038331]
[1751560723806,0.00087211,109470.0,109460.0,1.35818126]
[1751560724684,0.00087211,109470.0,109460.0,1.12742126]
[1751560724924,0.01957211,109470.0,109460.0,1.35922126]
[1751560725166,0.03727211,109470.0,109460.0,1.35922126]
[1751560726832,0.01957211,109470.0,109460.0,1.35922126]
[1751560727443,0.01957211,109470.0,109460.0,1.65252126]
[1751560727628,1e-08,109470.0,109460.0,1.67074449]
[1751560727794,1e-08,109470.0,109460.0,1.59790109]
[1751560728417,1e-08,109470.0,109460.0,1.61640109]
[1751560730481,1e-08,109470.0,109460.0,0.99211128]
[1751560730720,1e-08,109470.0,109460.0,0.72417314]
[1751560730721,0.04393418,109470.0,109460.0,0.72417314]
[1751560730929,0.05306851,109470.0,109460.0,0.85503333]
[1751560731320,0.04393418,109470.0,109460.0,0.86957418]
[1751560732163,0.03480001,109470.0,109460.0,0.86957418]
[1751560733166,0.03480001,109470.0,109460.0,0.57627418]
[1751560733946,0.04393418,109470.0,109460.0,0.57627418]
[1751560734150,0.04393418,109470.0,109460.0,0.57527418]
[1751560734363,0.03480001,109470.0,109460.0,0.57527418]
[1751560734571,0.03480001,109470.0,109460.0,0.57427418]
[1751560735534,0.04393426,109470.0,109460.0,0.57427418]
[1751560735955,0.04393426,109470.0,109460.0,0.34375418]
[1751560736155,0.04393426,109470.0,109460.0,0.57455418]
[1751560736370,0.04433426,109470.0,109460.0,0.57455418]
[1751560736571,0.03520001,109470.0,109460.0,0.57455418]
[1751560737614,0.03520001,109470.0,109460.0,0.94954399]
[1751560738014,0.03520001,109470.0,109460.0,0.57455418]
[1751560738887,0.04433426,109470.0,109460.0,0.57455418]
[1751560739065,0.04433426,109470.0,109460.0,0.58456461]
[1751560739246,0.04433426,109470.0,109460.0,0.57455418]
[1751560739928,0.05346868,109470.0,109460.0,0.57455418]
[1751560740091,0.04433426,109470.0,109460.0,0.57455418]
[1751560740264,0.06260317,109470.0,109460.0,0.57455418]
[1751560740451,0.07173792,109470.0,109460.0,0.32921333]
[1751560740642,0.07173792,109470.0,109460.0,0.53255833]
[1751560741635,0.26357129,109470.0,109460.0,0.3469985]
[1751560741767,0.07173792,109470.0,109460.0,0.54181367]
[1751560741965,0.08087275,109470.0,109460.0,0.54181367]
[1751560742193,0.2635712,109470.0,109460.0,0.54181367]
[1751560742609,0.2635712,109470.0,109460.0,0.5326785]
[1751560742787,0.62029277,109470.0,109460.0,0.46912774]
[1751560742993,0.62029277,109470.0,109460.0,0.47826316]
[1751560743539,0.24530296,109470.0,109460.0,0.48739841]
[1751560744350,0.05346959,109470.0,109460.0,0.49653358]
[1751560744698,0.05346918,109470.0,109460.0,0.49653358]
[1751560745220,0.05346876,109470.0,109460.0,0.49653358]
[1751560745431,0.05346868,109470.0,109460.0,0.49653358]
[1751560745636,0.03520001,109470.0,109460.0,0.49653358]
[1751560746049,0.03520001,109470.0,109460.0,0.94068405]
[1751560746050,0.00040001,109470.0,109460.0,0.94068405]
[1751560746262,0.00040001,109470.0,109460.0,0.97808405]
[1751560746565,0.0004,109470.0,109460.0,1.00571991]
[1751560746787,0.0004,109470.0,109460.0,1.72070972]
[1751560746993,0.0004,109470.0,109460.0,1.66608991]
[1751560747196,0.0004,109470.0,109460.0,1.2911001]
[1751560747396,0.0004,109470.0,109460.0,1.72072473]
[1751560747596,0.0004,109470.0,109460.0,1.34573492]
[1751560747795,0.0004,109470.0,109460.0,1.2911001]
[1751560749462,0.0004,109470.0,109460.0,1.2921001]
[1751560749588,0.0004,109470.0,109460.0,1.1064601]
[1751560749793,0.0004,109470.0,109460.0,1.3373801]
[1751560750067,0.0004,109470.0,109460.0,1.3383801]
[1751560751042,0.0004,109470.0,109460.0,1.6316801]
[1751560752036,0.0004,109470.0,109460.0,1.6591351]
[1751560754357,0.0004,109470.0,109460.0,1.28414529]
[1751560754563,0.0004,109470.0,109460.0,1.6590951]
[1751560757418,0.0004,109470.0,109460.0,1.7319385]
[1751560757635,0.0004,109470.0,109460.0,1.35694869]
[1751560757843,0.0004,109470.0,109460.0,1.7319385]
[1751560758770,0.0004,109470.0,109460.0,2.10692831]
[1751560758972,0.0004,109470.0,109460.0,1.7319385]
[1751560773928,0.0004,109470.0,109460.0,1.10746869]
[1751560774142,0.0004,109470.0,109460.0,1.6949785]
[1751560775846,0.0004,109470.0,109460.0,1.7134785]
[1751560779197,0.0004,109470.0,109460.0,1.7308785]
[1751560784090,0.0004,109470.0,109460.0,1.7307985]
[1751560784476,0.0004,109470.0,109460.0,1.6579551]
[1751560784686,0.0004,109470.0,109460.0,1.4267151]
[1751560784864,0.0004,109470.0,109460.0,1.6579551]
[1751560785063,0.0004,109470.0,109460.0,1.66796553]
[1751560785367,0.0004,109470.0,109460.0,1.6579551]
[1751560787336,0.0004,109470.0,109460.0,1.6578751]
[1751560790017,0.0004,109470.0,109460.0,1.6404751]
[1751560791726,0.0004,109470.0,109460.0,1.6403551]
[1751560795688,0.0004,109470.0,109460.0,1.4093151]
[1751560795829,0.0004,109470.0,109460.0,1.6402751]
[1751560797822,0.0004,109470.0,109460.0,1.96687749]
[1751560800514,0.0004,109470.0,109460.0,1.94825749]
[1751560802347,0.0004,109470.0,109460.0,1.98405749]
[1751560802712,0.0004,109470.0,109460.0,2.07531712]
[1751560806124,0.0004,109470.0,109460.0,1.74785632]
[1751560806769,0.0004,109470.0,109460.0,1.72945632]
[1751560807904,0.0004,109470.0,109460.0,1.74755632]
[1751560808338,0.0004,109470.0,109460.0,1.72945632]
[1751560808780,0.0004,109470.0,109460.0,1.35532492]
[1751560809009,0.0004,109470.0,109460.0,1.72945632]
[1751560809621,0.0004,109470.0,109460.0,1.80247774]
[1751560809817,0.0004,109470.0,109460.0,1.71121811]
[1751560810073,0.0004,109470.0,109460.0,1.69381811]
[1751560811105,0.0179,109470.0,109460.0,1.46297811]
[1751560811318,0.0357,109470.0,109460.0,1.30514586]
[1751560811604,0.0179,109470.0,109460.0,1.69381811]
[1751560815684,0.0179,109470.0,109460.0,1.08884671]
[1751560815902,0.0179,109470.0,109460.0,1.69373811]
[1751560816120,0.0363,109470.0,109460.0,1.40043811]
[1751560816460,0.0363,109470.0,109460.0,0.47331085]
[1751560816679,0.0363,109470.0,109460.0,0.65883085]
[1751560817096,0.0363,109470.0,109460.0,0.63957873]
[1751560817503,0.0363,109470.0,109460.0,0.63857873]
[1751560823024,0.0363,109470.0,109460.0,1.01247013]
[1751560823247,0.0179,109470.0,109460.0,1.01247013]
[1751560823659,0.0179,109470.0,109460.0,0.95770083]
[1751560823870,0.0179,109470.0,109460.0,1.0123602]
[1751560824045,0.0366,109470.0,109460.0,1.0123602]
[1751560824248,0.0366,109470.0,109460.0,0.6382288]
[1751560824465,0.0366,109470.0,109460.0,1.0123602]
[1751560824666,0.0366,109470.0,109460.0,0.6382288]
[1751560826052,0.0179,109470.0,109460.0,0.6382288]
[1751560827376,0.0179,109470.0,109460.0,1.0123602]
[1751560827798,0.0179,109470.0,109460.0,0.98910177]
[1751560828392,0.0362,109470.0,109460.0,0.98910177]
[1751560829575,0.0179,109470.0,109460.0,0.98910177]
[1751560837550,0.0179,109470.0,109460.0,1.00742177]
[1751560837767,0.0179,109470.0,109460.0,0.98910177]
[1751560839542,0.0004,109470.0,109460.0,0.98910177]
[1751560839742,0.0187,109470.0,109460.0,0.98910177]
[1751560840591,0.0004,109470.0,109460.0,0.98910177]
[1751560842425,0.0004,109470.0,109460.0,0.9344424]
[1751560842831,0.0004,109470.0,109460.0,0.58356943]
[1751560843029,0.0004,109470.0,109460.0,0.9344424]
[1751560843668,0.0004,109470.0,109460.0,1.28531537]
[1751560843880,0.0004,109470.0,109460.0,1.76216949]
[1751560844522,0.0004,109470.0,109460.0,2.11304246]
[1751560844950,0.0004,109470.0,109460.0,2.11504246]
[1751560845165,1e-08,109470.0,109460.0,2.11504246]
[1751560845390,1e-08,109470.0,109460.0,2.13328067]
[1751560845811,1e-08,109480.0,109470.0,1.65406195]
[1751560846010,0.29796778,109500.0,109490.0,0.26140469]
[1751560846239,0.29796778,109500.0,109490.0,1.62530756]
[1751560846240,0.29801498,109500.0,109490.0,1.62530756]
[1751560846438,0.29801498,109500.0,109490.0,1.67984853]
[1751560846641,0.29801498,109500.0,109490.0,1.69810878]
[1751560846846,0.29801498,109500.0,109490.0,1.72555778]
[1751560846986,0.29801498,109500.0,109490.0,1.02381184]
[1751560847218,0.29801498,109500.0,109490.0,1.72555778]
[1751560847414,0.29801498,109500.0,109490.0,1.30188359]
[1751560847816,0.29801498,109500.0,109490.0,1.32497453]
[1751560848410,0.29801498,109500.0,109490.0,1.37944254]
[1751560848793,0.29901498,109500.0,109490.0,1.37944254]
[1751560851205,0.29901498,109500.0,109490.0,1.32497453]
[1751560851545,0.29901498,109500.0,109490.0,1.61827453]
[1751560855266,0.29901498,109500.0,109490.0,1.36935453]
[1751560855653,0.34294681,109500.0,109490.0,0.68203062]
[1751560855858,0.34294681,109500.0,109490.0,0.86735062]
[1751560855859,0.70777889,109500.0,109490.0,0.86735062]
[1751560856004,0.31621498,109500.0,109490.0,0.86735062]
[1751560857110,0.29901498,109500.0,109490.0,0.86735062]
[1751560857339,0.29901498,109500.0,109490.0,1.27761453]
[1751560857539,0.29901498,109500.0,109490.0,0.98431453]
[1751560858301,0.29901498,109500.0,109490.0,1.32431453]
[1751560860354,0.29801498,109500.0,109490.0,1.32431453]
[1751560860850,0.29801498,109500.0,109490.0,1.32531453]
[1751560862251,0.29801498,109500.0,109490.0,1.32631453]
[1751560863609,0.29801498,109500.0,109490.0,1.61961453]
[1751560864302,1e-08,109500.0,109490.0,1.61961453]
[1751560864519,1e-08,109500.0,109490.0,2.01187844]
[1751560864955,1e-08,109500.0,109490.0,1.63791453]
[1751560865158,1e-08,109500.0,109490.0,1.63691453]
[1751560865993,1e-08,109500.0,109490.0,1.63791453]
[1751560867000,1e-08,109500.0,109490.0,2.01187844]
[1751560867135,1e-08,109500.0,109490.0,2.00987844]
[1751560867340,1e-08,109500.0,109490.0,2.01387844]
[1751560867535,1e-08,109500.0,109490.0,1.63462496]
[1751560867728,1e-08,109500.0,109490.0,1.99857844]
[1751560868840,1e-08,109500.0,109490.0,1.99897844]
[1751560869304,1e-08,109500.0,109490.0,1.25105062]
[1751560871901,1e-08,109500.0,109490.0,1.32385184]
[1751560872733,1e-08,109500.0,109490.0,1.37385184]
[1751560873892,1e-08,109500.0,109490.0,1.42385184]
[1751560874311,1e-08,109500.0,109490.0,1.44231025]
[1751560876401,0.0004,109520.0,109510.0,0.25916632]
[1751560876604,0.0004,109520.0,109510.0,0.9020574]
[1751560876971,0.0004,109520.0,109510.0,1.30346331]
[1751560878483,1e-08,109520.0,109510.0,1.30346331]
[1751560879166,1e-08,109520.0,109510.0,0.9294994]
[1751560879409,1e-08,109520.0,109510.0,1.30346331]
[1751560879818,1e-08,109520.0,109510.0,1.67742722]
[1751560880026,1e-08,109520.0,109510.0,2.11742722]
[1751560880244,1e-08,109520.0,109510.0,1.74346331]
[1751560880695,1e-08,109520.0,109510.0,2.11742722]
[1751560880912,1e-08,109520.0,109510.0,1.74346331]
[1751560881556,1e-08,109520.0,109510.0,2.11842722]
[1751560881759,1e-08,109520.0,109510.0,2.04679307]
[1751560881966,1e-08,109520.0,109510.0,1.76308879]
[1751560882372,1e-08,109520.0,109510.0,1.76508879]
[1751560882783,1e-08,109520.0,109510.0,1.76445997]
[1751560883204,0.0102,109550.0,109540.0,0.20996795]
[1751560883410,0.01034157,109550.0,109540.0,1.31507541]
[1751560884208,0.01034157,109550.0,109540.0,1.34251241]
[1751560884669,0.01034157,109550.0,109540.0,1.37881241]
[1751560885087,0.01034157,109550.0,109540.0,1.67211241]
[1751560885293,1e-08,109550.0,109540.0,1.67211241]
[1751560885506,0.00200001,109550.0,109540.0,1.6990711]
[1751560885940,1e-08,109550.0,109540.0,1.6990711]
[1751560886157,1e-08,109550.0,109540.0,1.4682711]
[1751560886387,1e-08,109550.0,109540.0,1.64462533]
[1751560887037,1e-08,109550.0,109540.0,1.64562533]
[1751560887219,1e-08,109550.0,109540.0,1.64762533]
[1751560887582,1e-08,109550.0,109540.0,1.62972533]
[1751560887794,1e-08,109550.0,109540.0,1.64772533]
[1751560888390,1e-08,109550.0,109540.0,1.64762533]
[1751560890878,1e-08,109550.0,109540.0,1.65675425]
[1751560891082,1e-08,109550.0,109540.0,1.28279034]
[1751560891298,1e-08,109550.0,109540.0,1.65675425]
[1751560891904,1e-08,109550.0,109540.0,1.28279034]
[1751560892111,1e-08,109550.0,109540.0,1.63875425]
[1751560893791,1e-08,109550.0,109540.0,1.65605425]
[1751560894474,1e-08,109550.0,109540.0,1.28209034]
[1751560894690,1e-08,109550.0,109540.0,2.15605425]
[1751560895324,1e-08,109550.0,109540.0,1.78209034]
[1751560895540,1e-08,109550.0,109540.0,2.15605425]
[1751560896415,1e-08,109550.0,109540.0,1.90803425]
[1751560896625,1e-08,109550.0,109540.0,2.13883425]
[1751560897763,1e-08,109550.0,109540.0,2.15713425]
[1751560899642,1e-08,109550.0,109540.0,2.13873425]
[1751560899853,1e-08,109550.0,109540.0,1.76477034]
[1751560900057,1e-08,109550.0,109540.0,2.15793425]
[1751560900693,1e-08,109550.0,109540.0,2.15781425]
[1751560901331,1e-08,109550.0,109540.0,2.17531425]
[1751560903273,1e-08,109550.0,109540.0,1.80135034]
[1751560903916,1e-08,109550.0,109540.0,1.94503425]
[1751560904149,0.00020001,109550.0,109540.0,2.17567425]
[1751560904993,0.00020001,109550.0,109540.0,2.15817425]
[1751560905202,0.00020001,109550.0,109540.0,1.99992876]
[1751560905428,0.00020001,109550.0,109540.0,2.13905425]
[1751560905637,0.00020001,109550.0,109540.0,1.90833425]
[1751560905846,0.01930001,109550.0,109540.0,2.13897425]
[1751560906077,0.00020001,109550.0,109540.0,2.13897425]
[1751560907065,0.00020001,109550.0,109540.0,2.21136876]
[1751560908136,0.00020001,109550.0,109540.0,2.21132876]
[1751560908372,0.00020001,109550.0,109540.0,2.22882876]
[1751560908920,0.00020001,109550.0,109540.0,2.21132876]
[1751560909121,0.00020001,109550.0,109540.0,2.02600876]
[1751560909370,0.01930001,109550.0,109540.0,2.21132876]
[1751560910410,0.00020001,109550.0,109540.0,2.21132876]
[1751560910823,0.01930001,109550.0,109540.0,2.21132876]
[1751560911044,0.01930001,109550.0,109540.0,1.98072876]
[1751560911247,0.01930001,109550.0,109540.0,2.21132876]
[1751560912689,0.00020001,109550.0,109540.0,2.21132876]
[1751560914499,0.00020001,109550.0,109540.0,2.22936876]
[1751560918012,0.00020001,109550.0,109540.0,2.21116876]
[1751560918240,0.03580001,109550.0,109540.0,1.22102785]
[1751560918458,0.41889142,109550.0,109540.0,1.0442738]
[1751560918675,0.41889142,109550.0,109540.0,1.05881465]
[1751560918889,0.43714691,109550.0,109540.0,1.0442738]
[1751560919098,0.063183,109550.0,109540.0,1.0422738]
[1751560919541,0.06318292,109550.0,109540.0,1.0412738]
[1751560919960,0.06418292,109550.0,109540.0,1.0412738]
[1751560920162,0.04592751,109550.0,109540.0,1.0412738]
[1751560920374,0.03680001,109550.0,109540.0,1.0412738]
[1751560920833,0.03680001,109550.0,109540.0,0.8560338]
[1751560921030,0.03680001,109550.0,109540.0,1.0412738]
[1751560928911,0.00120001,109550.0,109540.0,1.42977856]
[1751560929128,0.00120001,109550.0,109540.0,1.44877856]
[1751560930005,0.00120001,109550.0,109540.0,1.42977856]
[1751560931608,0.00120001,109550.0,109540.0,1.05581465]
[1751560931810,0.00120001,109550.0,109540.0,1.42977856]
[1751560932395,0.00120001,109550.0,109540.0,1.44727856]
[1751560932808,0.00120001,109550.0,109540.0,1.42977856]
[1751560934258,0.00120001,109550.0,109540.0,1.44827856]
[1751560934457,0.00120001,109550.0,109540.0,1.74157856]
[1751560938256,0.00120001,109550.0,109540.0,1.36761465]
[1751560938491,0.01930001,109550.0,109540.0,1.11867465]
[1751560938714,0.41196392,109550.0,109540.0,1.34911465]
[1751560939093,0.03800001,109550.0,109540.0,1.34911465]
[1751560940391,0.03800001,109550.0,109540.0,1.05581465]
[1751560942716,0.01930001,109550.0,109540.0,1.42977856]
[1751560943075,0.01930001,109550.0,109540.0,1.05581465]
[1751560950711,0.00120001,109550.0,109540.0,1.05581465]
[1751560956164,0.00120001,109550.0,109540.0,1.42977856]
[1751560956369,0.00120001,109550.0,109540.0,1.44867856]
[1751560957608,0.00120001,109550.0,109540.0,1.05581465]
[1751560958775,0.00120001,109550.0,109540.0,1.07461465]
[1751560960598,0.00120001,109550.0,109540.0,1.46697856]
[1751560960805,0.00120001,109550.0,109540.0,1.53937307]
[1751560962110,0.00120001,109550.0,109540.0,1.07461465]
[1751560962313,0.00120001,109550.0,109540.0,1.05581465]
[1751560963968,0.00120001,109550.0,109540.0,1.34911465]
[1751560965863,0.00120001,109550.0,109540.0,1.40364399]
[1751560966732,0.00120001,109550.0,109540.0,1.42124399]
[1751560967149,0.00120001,109550.0,109540.0,1.7952079]
[1751560967582,0.00120001,109550.0,109540.0,1.74067856]
[1751560968207,0.00120001,109550.0,109540.0,1.36671465]
[1751560969903,0.00120001,109550.0,109540.0,1.07341465]
[1751560975827,0.00120001,109550.0,109540.0,0.8108338]
[1751560975828,0.42109142,109550.0,109540.0,0.8108338]
[1751560976086,0.41196392,109550.0,109540.0,0.9970338]
[1751560976510,0.43021933,109550.0,109540.0,0.9970338]
[1751560976715,0.43934741,109550.0,109540.0,0.9972138]
[1751560976930,0.63104069,109550.0,109540.0,0.79267654]
[1751560977138,0.43934741,109550.0,109540.0,0.9972137]
[1751560977341,0.62191244,109550.0,109540.0,0.99721387]
[1751560977549,0.62191244,109550.0,109540.0,0.98812529]
[1751560977951,0.61278486,109550.0,109540.0,0.98812529]
[1751560978388,0.61278486,109550.0,109540.0,0.98816529]
[1751560978790,0.23882095,109550.0,109540.0,0.98816529]
[1751560978991,0.61278486,109550.0,109540.0,0.99729395]
[1751560979434,0.61278486,109550.0,109540.0,0.81093395]
[1751560979643,0.61278486,109550.0,109540.0,0.99729395]
[1751560980064,0.61278486,109550.0,109540.0,1.00642253]
[1751560980265,0.61278486,109550.0,109540.0,1.00730438]
[1751560980472,0.61278486,109550.0,109540.0,0.99729395]
[1751560980674,0.42946983,109550.0,109540.0,1.00642245]
[1751560980812,0.43859799,109550.0,109540.0,1.00642245]
[1751560981618,0.62116302,109550.0,109540.0,0.99729395]
[1751560982074,0.62116302,109550.0,109540.0,0.5004]
[1751560982284,0.60290711,109550.0,109540.0,0.5004]
[1751560982531,0.60290711,109550.0,109540.0,0.68676]
[1751560982790,0.60290711,109550.0,109540.0,0.5004]
[1751560983020,0.94290711,109550.0,109540.0,0.5004]
[1751560983231,0.9600173,109550.0,109540.0,0.5004]
[1751560983438,0.9874623,109550.0,109540.0,0.5004]
[1751560983658,0.98701229,109550.0,109540.0,0.5004]
[1751560983901,1.00297995,109550.0,109540.0,0.5004]
[1751560984119,1.00497995,109550.0,109540.0,0.5004]
[1751560985732,1.00517995,109550.0,109540.0,0.5004]
[1751560986563,0.99876524,109550.0,109540.0,0.5004]
[1751560986759,0.62480133,109550.0,109540.0,0.5004]
[1751560986973,0.99676524,109550.0,109540.0,0.5004]
[1751560989441,1.46216608,109550.0,109540.0,0.5004]
[1751560989656,1.56000494,109550.0,109540.0,0.5004]
[1751560989867,1.58185815,109550.0,109540.0,0.5004]
[1751560990557,1.66219562,109550.0,109540.0,0.5004]
[1751560991171,1.57375869,109550.0,109540.0,0.5004]
[1751560991392,1.57475869,109550.0,109540.0,0.5004]
[1751560991624,1.54042122,109550.0,109540.0,0.5004]
[1751560991840,1.54742122,109550.0,109540.0,0.5004]
[1751560992487,1.52556801,109550.0,109540.0,0.5004]
[1751560992920,1.61700494,109550.0,109540.0,0.5004]
[1751560993362,1.64462647,109550.0,109540.0,0.5004]
[1751560993569,1.55318954,109550.0,109540.0,0.5004]
[1751560996725,1.53607935,109550.0,109540.0,0.5004]
[1751560996942,1.55312781,109550.0,109540.0,0.5004]
[1751561002181,1.57495803,109550.0,109540.0,0.5004]
[1751561002601,1.57495972,109550.0,109540.0,0.5004]
[1751561004735,1.38739581,109550.0,109540.0,0.5004]
[1751561005559,1.20099581,109550.0,109540.0,0.5004]
[1751561005793,1.43311581,109550.0,109540.0,0.5004]
[1751561008701,1.40966373,109550.0,109540.0,0.5004]
[1751561008904,1.43315964,109550.0,109540.0,0.5004]
[1751561011914,1.45709268,109550.0,109540.0,0.5004]
[1751561012099,6.89309266,109550.0,109540.0,0.5004]
[1751561012335,6.92948463,109550.0,109540.0,0.5004]
[1751561012764,6.90208056,109550.0,109540.0,0.5004]
[1751561013603,6.66996056,109550.0,109540.0,0.5004]
[1751561013808,6.90200056,109550.0,109540.0,0.5004]
[1751561014018,6.88359527,109550.0,109540.0,0.04599831]
[1751561014453,6.91493274,109550.0,109540.0,0.04599831]
[1751561015043,6.91497094,109550.0,109540.0,0.04599831]
[1751561015251,7.00640787,109550.0,109540.0,0.04599831]
[1751561015452,7.00640737,109550.0,109540.0,0.04599831]
[1751561016317,7.21277335,109550.0,109540.0,1e-08]
[1751561016527,0.57797595,109520.0,109510.0,0.0731897]
[1751561016730,1.3075037,109520.0,109510.0,0.0731897]
[1751561017150,1.38088632,109520.0,109510.0,0.0731897]
[1751561017554,1.3349597,109520.0,109510.0,0.0731897]
[1751561017711,1.3369597,109520.0,109510.0,0.0731897]
[1751561018125,1.30487279,109520.0,109510.0,0.0733897]
[1751561018308,1.33695715,109520.0,109510.0,0.0733897]
[1751561018681,1.33695715,109520.0,109510.0,0.0002]
[1751561019091,1.33895715,109520.0,109510.0,0.0002]
[1751561020567,1.43039408,109520.0,109510.0,0.0002]
[1751561022391,1.32085715,109520.0,109510.0,0.0002]
[1751561024404,1.32085144,109520.0,109510.0,0.0002]
[1751561025899,1.30185144,109520.0,109510.0,0.0002]